[Event "IND-ch Senior Open 2019"]
[Site "Mazitar"]
[Date "2019.12.11"]
[Round "3.14"]
[White "Laxman, R.R."]
[Black "Kamdar Udit"]
[Result "1-0"]
[ECO "A46"]
[WhiteElo "2444"]
[BlackElo "2107"]
[Annotator "ChessBase"]
[PlyCount "101"]
[EventDate "2018.12.08"]
[EventType "swiss"]
[EventRounds "11"]
[EventCountry "IND"]
[SourceTitle "playchess.com"]
[Source "ChessBase"]
[SourceQuality "1"]
[TimeControl "40/5400+30:1800+30"]

1. d4 {[%emt 0:00:00]} c6 {[%emt 0:00:00]} 2. Nf3 {[%emt 0:00:07]} Nf6 {[%emt 0:00:01]} 3. Bf4 {[%emt 0:00:03]} d5 {[%emt 0:00:01]} 4. e3 {[%emt 0:33:51]} Qb6 {[%emt 0:00:03]} 5. Qc1 {[%emt 0:00:01]} Bf5 {[%emt 0:00:01]} 6. h3 {[%emt 0:00:02]} Nbd7 {[%emt 0:00:03]} 7. Bd3 {[%emt 0:00:02]} Bxd3 {[%emt 1:32:09]} 8. cxd3 {[%emt 0:00:00]} c5 {[%emt 0:00:03]} 9. Be5 {[%emt 0:00:01]} e6 {[%emt 0:00:00]} 10. O-O {[%emt 0:00:01]} cxd4 {[%emt 0:00:01]} 11. Bxd4 {[%emt 0:00:03]} Bc5 {[%emt 0:00:00]} 12. Bxc5 {[%emt 0:00:02]} Nxc5 {[%emt 0:00:00]} 13. Qc2 {[%emt 0:00:01]} O-O {[%emt 0:00:00]} 14. Rc1 {[%emt 0:00:02]} Na6 {[%emt 0:00:02]} 15. a3 {[%emt 0:00:00]} Qd8 {[%emt 0:00:01]} 16. Nbd2 {[%emt 0:00:02]} Rc8 {[%emt 0:00:02]} 17. Qa4 {[%emt 0:00:02]} Nc5 {[%emt 0:00:02]} 18. Qd4 {[%emt 0:00:02]} Qb6 {[%emt 0:00:50]} 19. b4 {[%emt 0:00:01]} Na4 {[%emt 0:00:00]} 20. Nb3 {[%emt 0:00:02]} Qxd4 {[%emt 0:00:02]} 21. Nbxd4 {[%emt 0:00:05]} a6 {[%emt 0:00:00]} 22. Ne5 {[%emt 0:00:03]} Nb6 {[%emt 0:00:01]} 23. Nb3 {[%emt 0:00:02]} Rxc1+ {[%emt 0:00:02]} 24. Rxc1 {[%emt 0:00:01]} Rc8 {[%emt 0:00:00]} 25. Rc5 {[%emt 0:00:02]} Ne8 {[%emt 0:00:01]} 26. Nd7 {[%emt 0:00:02]} Rxc5 {[%emt 0:00:01]} 27. Ndxc5 {[%emt 0:00:00]} Nd6 {[%emt 0:00:03]} 28. Na5 {[%emt 1:07:23]} Nb5 {[%emt 0:00:01]} 29. Naxb7 {[%emt 0:00:02]} Nxa3 {[%emt 0:00:02]} 30. Kf1 {[%emt 0:00:02]} d4 {[%emt 0:00:01]} 31. e4 {[%emt 0:00:01]} Kf8 {[%emt 0:00:00]} 32. Nxa6 {[%emt 0:00:02]} Na4 {[%emt 0:00:01]} 33. Nbc5 {[%emt 0:00:05]} Nc3 {[%emt 0:00:03]} 34. Nb8 {[%emt 0:00:02]} Nc2 {[%emt 0:00:02]} 35. Nc6 {[%emt 0:00:02]} Ke8 {[%emt 0:00:02]} 36. f4 {[%emt 0:00:02]} g6 {[%emt 0:00:00]} 37. g3 {[%emt 0:00:01]} f5 {[%emt 0:00:00]} 38. Kf2 {[%emt 0:00:02]} Kf7 {[%emt 0:00:00]} 39. e5 {[%emt 0:00:01]} h6 {[%emt 0:00:00]} 40. Nd8+ {[%emt 0:00:02]} Ke7 {[%emt 0:00:05]} 41. Nc6+ {[%emt 0:30:00]} Kf7 {[%emt 0:30:02]} 42. h4 {[%emt 0:00:02]} g5 {[%emt 0:00:13]} 43. hxg5 {[%emt 0:00:00]} hxg5 {[%emt 0:00:02]} 44. fxg5 {[%emt 0:00:00]} Nb5 {[%emt 0:00:03]} 45. Ke2 {[%emt 0:00:02]} Nc7 {[%emt 0:00:02]} 46. Kd2 {[%emt 0:00:02]} Ne3 {[%emt 0:00:04]} 47. Nxd4 {[%emt 0:00:03]} Nf1+ {[%emt 0:00:01]} 48. Ke1 {[%emt 0:00:01]} Nxg3 {[%emt 0:00:01]} 49. b5 {[%emt 0:00:02]} Nd5 {[%emt 0:00:01]} 50. Ndxe6 {[%emt 0:00:02]} f4 {[%emt 0:00:02]} 51. Nxf4 {[%emt 0:00:03]} 1-0

[Event "IND-ch Senior Open 2019"]
[Site "Mazitar"]
[Date "2019.12.11"]
[Round "3.15"]
[White "Pranav Vijay"]
[Black "Das, Sayantan"]
[Result "1/2-1/2"]
[ECO "C19"]
[WhiteElo "2265"]
[BlackElo "2440"]
[Annotator "ChessBase"]
[PlyCount "150"]
[EventDate "2018.12.08"]
[EventType "swiss"]
[EventRounds "11"]
[EventCountry "IND"]
[SourceTitle "playchess.com"]
[Source "ChessBase"]
[SourceQuality "1"]
[TimeControl "40/5400+30:1800+30"]

1. e4 {[%emt 1:30:01]} e6 {[%emt 1:30:28]} 2. d4 {[%emt 0:00:59]} d5 {[%emt 0:00:31]} 3. Nc3 {[%emt 0:00:29]} Bb4 {[%emt 0:00:31]} 4. e5 {[%emt 0:00:29]} c5 {[%emt 0:00:30]} 5. a3 {[%emt 0:00:30]} Bxc3+ {[%emt 0:00:30]} 6. bxc3 {[%emt 0:00:32]} Ne7 {[%emt 0:00:28]} 7. h4 {[%emt 0:00:29]} Qa5 {[%emt 0:00:00]} 8. Bd2 {[%emt 0:00:29]} Qa4 {[%emt 0:01:00]} 9. Nf3 {[%emt 0:00:31]} b6 {[%emt 0:00:00]} 10. h5 {[%emt 0:00:31]} h6 {[%emt 0:01:02]} 11. Rh4 {[%emt 0:00:00]} Nf5 {[%emt 0:00:00]} 12. Rf4 {[%emt 0:00:59]} c4 {[%emt 0:00:00]} 13. Nh4 {[%emt 0:00:00]} Nc6 {[%emt 0:00:00]} 14. Qg4 {[%emt 0:00:00]} Rg8 {[%emt 0:00:00]} 15. Qf3 {[%emt 0:00:00]} Nce7 {[%emt 0:00:18]} 16. g3 {[%emt 0:00:00]} Bd7 {[%emt 0:02:42]} 17. Ng2 {[%emt 0:00:00]} Nc6 {[%emt 0:00:00]} 18. g4 {[%emt 0:03:01]} Nfe7 {[%emt 0:00:00]} 19. Ne3 {[%emt 0:00:29]} Rf8 {[%emt 0:00:00]} 20. Bh3 {[%emt 0:00:00]} b5 {[%emt 0:00:00]} 21. Kf1 {[%emt 0:01:01]} Qa6 {[%emt 0:00:00]} 22. Kg1 {[%emt 0:00:00]} Qb6 {[%emt 0:00:00]} 23. Qg2 {[%emt 0:00:58]} a5 {[%emt 0:00:00]} 24. g5 {[%emt 0:00:32]} hxg5 {[%emt 0:00:00] -error} 25. Qxg5 f5 26. exf6 gxf6 27. Qh4 f5 28. Ng2 O-O-O 29. Re1 Rh8 30. Rf3 Rdg8 31. h6 b4 32. axb4 axb4 33. Rb1 Qa7 34. Rg3 Rxg3 35. Qxg3 Rh7 36. Qd6 Qa2 37. Re1 b3 38. Bf4 Kd8 39. Rxe6 b2 40. Bxf5 b1=Q+ 41. Re1 Qxe1+ 42. Nxe1 Nxf5 43. Qf8+ Be8 44. Qxf5 Qa1 45. Qxh7 Qxe1+ 46. Kg2 Qe7 47. Qf5 Bd7 48. Qxd5 Qh7 49. Qg5+ Ke8 50. Bd6 Bf5 51. d5 Nd8 52. Kh2 Bxc2 53. f3 Kd7 54. Bb4 Qf7 55. Qg4+ Bf5 56. Qxc4 Qh5+ 57. Kg3 Qh3+ 58. Kf2 Qxh6 59. Qb5+ Kc8 60. Qc5+ Kb8 61. Qe7 Qd2+ 62. Kg3 Qxd5 63. Bd6+ Ka8 64. Qxd8+ Kb7 65. Qc7+ Ka6 66. c4 Qb7 67. Qc5 Qg7+ 68. Kf4 Bd7 69. Qa3+ Kb7 70. Be5 Qf7+ 71. Ke3 Qxc4 72. Qd6 Qc6 73. Qb8+ Ka6 74. Qb2 Qb6+ 75. Qxb6+ Kxb6 1/2-1/2

[Event "IND-ch Senior Open 2019"]
[Site "Mazitar"]
[Date "2019.12.11"]
[Round "3.16"]
[White "Akash G"]
[Black "Harshita Guddanti"]
[Result "1-0"]
[ECO "B75"]
[WhiteElo "2431"]
[BlackElo "2042"]
[Annotator "ChessBase"]
[PlyCount "63"]
[EventDate "2018.12.08"]
[EventType "swiss"]
[EventRounds "11"]
[EventCountry "IND"]
[SourceTitle "playchess.com"]
[Source "ChessBase"]
[SourceQuality "1"]
[TimeControl "40/5400+30:1800+30"]

1. e4 {[%emt 0:00:00]} c5 {[%emt 0:00:00]} 2. Nf3 {[%emt 0:00:07]} d6 {[%emt 0:00:01]} 3. d4 {[%emt 0:00:01]} cxd4 {[%emt 0:00:00]} 4. Nxd4 {[%emt 0:00:00]} Nf6 5. Nc3 g6 {[%emt 0:00:30]} 6. Be3 {[%emt 0:00:38]} Bg7 {[%emt 0:00:01]} 7. f3 {[%emt 0:00:03]} Nc6 {[%emt 0:00:01]} 8. Qd2 {[%emt 0:00:03]} h5 {[%emt 0:32:43]} 9. O-O-O {[%emt 0:00:02]} Bd7 {[%emt 0:00:02]} 10. Kb1 {[%emt 0:00:02]} Rb8 {[%emt 0:00:02]} 11. h3 {[%emt 0:00:02]} a6 {[%emt 0:00:01]} 12. Nd5 {[%emt 1:33:28]} b5 {[%emt 0:00:02]} 13. Nxc6 {[%emt 0:00:01]} Bxc6 {[%emt 0:00:03]} 14. Bd4 {[%emt 0:00:00]} Bxd5 {[%emt 0:00:02]} 15. exd5 {[%emt 0:00:02]} Qd7 {[%emt 0:00:00]} 16. g4 {[%emt 0:00:02]} hxg4 {[%emt 0:00:00]} 17. fxg4 {[%emt 0:00:03]} Kf8 {[%emt 0:00:00]} 18. Bg2 {[%emt 0:00:02]} Kg8 {[%emt 0:00:00]} 19. Rhf1 {[%emt 0:00:04]} Rh7 {[%emt 0:00:00]} 20. Rde1 {[%emt 0:00:03]} Bf8 {[%emt 0:00:02]} 21. Qf2 {[%emt 0:00:03]} Ne8 {[%emt 0:00:00]} 22. Be4 {[%emt 0:00:03]} Nc7 {[%emt 0:00:03]} 23. h4 {[%emt 0:00:02]} e5 {[%emt 0:00:01]} 24. dxe6 {[%emt 0:00:00]} Nxe6 {[%emt 0:00:03]} 25. h5 {[%emt 0:00:00]} Nxd4 {[%emt 0:00:01]} 26. hxg6 {[%emt 0:00:00]} fxg6 {[%emt 0:00:01]} 27. Qxd4 {[%emt 0:00:00]} Qg7 {[%emt 0:00:02]} 28. Qd3 {[%emt 0:00:00]} Rd8 {[%emt 0:00:03]} 29. Bxg6 {[%emt 0:00:00]} Rh6 {[%emt 0:00:01]} 30. g5 {[%emt 0:00:00]} Rh2 {[%emt 0:00:00]} 31. Qd5+ {[%emt 0:00:00]} Kh8 {[%emt 0:00:02]} 32. Rh1 {[%emt 0:00:00]} 1-0

[Event "IND-ch Senior Open 2019"]
[Site "Mazitar"]
[Date "2019.12.11"]
[Round "3.17"]
[White "Jinan Jomon"]
[Black "Neelotpal, Das"]
[Result "0-1"]
[ECO "C48"]
[WhiteElo "2039"]
[BlackElo "2430"]
[Annotator "ChessBase"]
[PlyCount "59"]
[EventDate "2018.12.08"]
[EventType "swiss"]
[EventRounds "11"]
[EventCountry "IND"]
[SourceTitle "playchess.com"]
[Source "ChessBase"]
[SourceQuality "1"]
[TimeControl "40/5400+30:1800+30"]

1. e4 {[%emt 0:00:00]} e5 {[%emt 0:00:00]} 2. Nf3 {[%emt 0:00:01]} Nc6 {[%emt 0:00:00]} 3. Nc3 {[%emt 0:00:02]} Nf6 4. Bb5 {[%emt 0:00:02]} Nd4 {[%emt 0:00:31]} 5. Bc4 {[%emt 0:00:01]} Bc5 {[%emt 0:01:53]} 6. d3 {[%emt 0:16:55]} d6 {[%emt 0:02:52]} 7. Nxd4 {[%emt 0:04:41]} Bxd4 {[%emt 0:55:39]} 8. Be3 {[%emt 0:00:01]} O-O {[%emt 0:00:02]} 9. O-O {[%emt 0:00:01]} Be6 {[%emt 0:00:01]} 10. Bxe6 {[%emt 0:00:02]} fxe6 {[%emt 0:00:01]} 11. Ne2 {[%emt 0:00:02]} Bxe3 {[%emt 0:00:01]} 12. fxe3 {[%emt 0:00:00]} Ng4 {[%emt 0:00:02]} 13. Rxf8+ {[%emt 0:00:01]} Qxf8 {[%emt 0:21:50]} 14. Nf4 {[%emt 0:00:01]} h5 {[%emt 0:06:04]} 15. h3 {[%emt 0:00:01]} exf4 {[%emt 0:03:38]} 16. hxg4 {[%emt 0:00:01]} fxe3 {[%emt 0:00:01]} 17. Qe2 {[%emt 0:00:03]} hxg4 {[%emt 0:00:00]} 18. Rf1 {[%emt 0:00:07]} Qe7 {[%emt 0:00:00]} 19. Qxg4 {[%emt 0:00:02]} b6 {[%emt 0:00:00]} 20. Qf3 {[%emt 0:00:01]} Rf8 {[%emt 0:00:00]} 21. Qxf8+ {[%emt 0:00:03]} Qxf8 {[%emt 0:00:00]} 22. Rxf8+ {[%emt 0:00:01]} Kxf8 {[%emt 0:00:00]} 23. Kf1 {[%emt 0:00:04]} Kf7 {[%emt 0:00:00]} 24. Ke2 {[%emt 0:00:02]} Kf6 {[%emt 0:00:00]} 25. Kxe3 {[%emt 0:00:00]} Kg5 {[%emt 0:00:00]} 26. Kf3 {[%emt 0:00:01]} c5 {[%emt 0:00:00]} 27. a3 {[%emt 0:00:01]} d5 {[%emt 0:00:00]} 28. exd5 {[%emt 0:00:00]} exd5 {[%emt 0:00:00]} 29. c3 {[%emt 0:00:04]} c4 {[%emt 0:00:00]} 30. d4 {[%emt 0:00:02]} 0-1

[Event "IND-ch Senior Open 2019"]
[Site "Mazitar"]
[Date "2019.12.11"]
[Round "3.18"]
[White "Kunte, Abhijit"]
[Black "Sinha, Sudhir Kumar"]
[Result "1-0"]
[ECO "E15"]
[WhiteElo "2467"]
[BlackElo "2033"]
[Annotator "ChessBase"]
[PlyCount "51"]
[EventDate "2018.12.08"]
[EventType "swiss"]
[EventRounds "11"]
[EventCountry "IND"]
[SourceTitle "playchess.com"]
[Source "ChessBase"]
[SourceQuality "1"]
[TimeControl "40/5400+30:1800+30"]

1. d4 {[%emt 0:00:00]} Nf6 {[%emt 0:00:00]} 2. c4 {[%emt 0:00:01]} e6 {[%emt 0:00:00]} 3. Nf3 {[%emt 0:00:02]} b6 {[%emt 0:00:03]} 4. g3 {[%emt 0:00:01]} Ba6 {[%emt 0:00:03]} 5. Qc2 {[%emt 0:00:01]} Bb4+ {[%emt 0:00:01]} 6. Bd2 {[%emt 0:00:07]} Be7 {[%emt 0:01:04]} 7. Bg2 {[%emt 0:00:33]} O-O {[%emt 0:00:38]} 8. O-O {[%emt 0:03:12]} d5 {[%emt 0:02:37]} 9. Ne5 {[%emt 0:01:26]} Bb7 {[%emt 0:02:55]} 10. cxd5 {[%emt 0:02:44]} exd5 {[%emt 0:01:12]} 11. Nc3 {[%emt 0:00:36]} a6 {[%emt 0:01:58]} 12. Rfd1 {[%emt 0:07:10]} h6 {[%emt 0:14:17]} 13. Rac1 {[%emt 0:05:23]} Nbd7 {[%emt 0:07:31]} 14. Qb3 {[%emt 0:01:33]} c6 {[%emt 0:06:22]} 15. e4 {[%emt 0:00:07]} Nb8 {[%emt 0:12:09]} 16. Bf4 {[%emt 0:06:29]} dxe4 {[%emt 0:05:18]} 17. d5 {[%emt 0:03:46]} cxd5 {[%emt 0:03:06]} 18. Nxe4 {[%emt 0:00:06]} Nbd7 {[%emt 0:09:12]} 19. Nxd7 {[%emt 0:00:24]} Nxd7 {[%emt 0:00:54]} 20. Bc7 {[%emt 0:00:09]} Qc8 {[%emt 0:05:19]} 21. Nd6 {[%emt 0:00:09]} Bxd6 {[%emt 0:00:04]} 22. Bxd6 {[%emt 0:00:01]} Qd8 {[%emt 0:03:21]} 23. Bxf8 {[%emt 0:00:10]} Qxf8 {[%emt 0:00:47]} 24. Rc7 {[%emt 0:00:55]} Bc8 {[%emt 0:00:58]} 25. Qxd5 {[%emt 0:00:11]} Rb8 {[%emt 0:00:58]} 26. Rxd7 {[%emt 0:00:06]} 1-0

[Event "IND-ch Senior Open 2019"]
[Site "Mazitar"]
[Date "2019.12.11"]
[Round "3.20"]
[White "Priyanka, Kumari"]
[Black "Ravi, Teja S."]
[Result "1/2-1/2"]
[ECO "B10"]
[WhiteElo "1874"]
[BlackElo "2455"]
[Annotator "ChessBase"]
[PlyCount "62"]
[EventDate "2018.12.08"]
[EventType "swiss"]
[EventRounds "11"]
[EventCountry "IND"]
[SourceTitle "playchess.com"]
[Source "ChessBase"]
[SourceQuality "1"]
[TimeControl "40/5400+30:1800+30"]

1. e4 {[%emt 0:00:00]} c6 {[%emt 0:00:01]} 2. Nf3 {[%emt 0:00:01]} d5 {[%emt 0:00:03]} 3. Nc3 {[%emt 0:00:01]} dxe4 {[%emt 0:00:00]} 4. Nxe4 {[%emt 0:00:02]} Nf6 {[%emt 0:00:00]} 5. Qe2 {[%emt 0:00:14]} Nxe4 {[%emt 0:00:03]} 6. Qxe4 {[%emt 0:00:00]} Qa5 {[%emt 0:00:00]} 7. Bc4 {[%emt 0:00:24]} Bf5 {[%emt 0:00:01]} 8. Qe2 {[%emt 0:07:28]} Nd7 {[%emt 0:09:28]} 9. Nd4 {[%emt 0:11:44]} Bg6 {[%emt 0:16:10]} 10. O-O {[%emt 0:14:16]} Qe5 {[%emt 0:11:03]} 11. Qxe5 {[%emt 0:06:05]} Nxe5 {[%emt 0:00:00]} 12. Bb3 {[%emt 0:00:43]} O-O-O {[%emt 0:06:41]} 13. Ne2 {[%emt 0:01:31]} e6 {[%emt 0:01:56]} 14. d4 {[%emt 0:03:56]} Ng4 {[%emt 0:00:58]} 15. Bg5 {[%emt 0:03:45]} Nf6 {[%emt 0:01:37]} 16. Rad1 {[%emt 0:04:08]} c5 {[%emt 0:04:55]} 17. c3 {[%emt 0:09:06]} cxd4 {[%emt 0:02:35]} 18. Rxd4 {[%emt 0:01:40]} Rxd4 {[%emt 0:01:08]} 19. Nxd4 {[%emt 0:01:37]} Bc5 {[%emt 0:00:43]} 20. Nf3 {[%emt 0:08:14]} h6 {[%emt 0:06:24]} 21. Bf4 {[%emt 0:05:06]} Nh5 {[%emt 0:14:32]} 22. Be5 {[%emt 0:02:22]} Rd8 {[%emt 0:00:31]} 23. Rd1 {[%emt 0:02:50]} Rxd1+ {[%emt 0:01:22]} 24. Bxd1 {[%emt 0:00:01]} Nf6 {[%emt 0:00:30]} 25. Bd4 {[%emt 0:02:44]} Bxd4 {[%emt 0:00:14]} 26. Nxd4 {[%emt 0:00:07]} Bb1 {[%emt 0:00:57]} 27. Nb5 {[%emt 0:02:33]} Bxa2 {[%emt 0:01:55]} 28. Nd6+ {[%emt 0:00:49]} Kc7 {[%emt 0:00:23]} 29. Nxf7 {[%emt 0:00:04]} Nd7 {[%emt 0:06:00]} 30. f4 {[%emt 0:00:38]} Nc5 {[%emt 0:01:31]} 31. Ne5 {[%emt 0:01:41]} a5 {[%emt 0:01:43]} 1/2-1/2

[Event "IND-ch Senior Open 2019"]
[Site "Mazitar"]
[Date "2019.12.11"]
[Round "3.21"]
[White "Anustoop Biswas"]
[Black "Bakre, Tejas"]
[Result "1/2-1/2"]
[ECO "B23"]
[WhiteElo "2087"]
[BlackElo "2445"]
[Annotator "ChessBase"]
[PlyCount "74"]
[EventDate "2018.12.08"]
[EventType "swiss"]
[EventRounds "11"]
[EventCountry "IND"]
[SourceTitle "playchess.com"]
[Source "ChessBase"]
[SourceQuality "1"]
[TimeControl "40/5400+30:1800+30"]

1. e4 {[%emt 0:00:00]} c5 {[%emt 0:00:01]} 2. Nc3 {[%emt 0:00:08]} Nc6 {[%emt 0:00:01]} 3. f4 {[%emt 0:00:03]} g6 {[%emt 0:00:01]} 4. Nf3 {[%emt 0:00:03]} Bg7 {[%emt 0:00:01]} 5. Bb5 {[%emt 0:00:03]} Nd4 {[%emt 0:00:01]} 6. O-O {[%emt 0:00:03]} Nxb5 {[%emt 0:00:02]} 7. Nxb5 {[%emt 0:00:02]} d5 {[%emt 0:00:01]} 8. exd5 {[%emt 0:00:03]} a6 {[%emt 0:00:01]} 9. Nc3 {[%emt 0:00:04]} Nf6 {[%emt 0:00:01]} 10. d4 {[%emt 0:00:04]} Nxd5 {[%emt 0:00:03]} 11. dxc5 {[%emt 0:00:01]} Nxc3 {[%emt 0:00:03]} 12. Qxd8+ {[%emt 0:00:01]} Kxd8 {[%emt 0:00:00]} 13. bxc3 {[%emt 0:00:02]} Bxc3 {[%emt 0:00:01]} 14. Rb1 {[%emt 0:00:03]} Ke8 {[%emt 0:00:07]} 15. Rb3 {[%emt 0:00:01]} Ba5 {[%emt 0:00:06]} 16. Ne5 {[%emt 0:00:03]} f6 {[%emt 0:00:03]} 17. Nc4 {[%emt 0:00:01]} Bc7 {[%emt 0:00:08]} 18. Nb6 {[%emt 0:00:01]} Bxb6 {[%emt 0:00:04]} 19. Rxb6 {[%emt 0:00:01]} Kf7 {[%emt 0:00:08]} 20. Re1 {[%emt 0:00:11]} Rd8 {[%emt 0:00:03]} 21. Be3 {[%emt 0:00:15]} Rd7 {[%emt 0:00:01]} 22. Reb1 {[%emt 0:00:06]} Rc7 {[%emt 0:00:01]} 23. R1b2 {[%emt 0:00:05]} Ke8 {[%emt 0:00:03]} 24. a3 {[%emt 0:00:02]} Rc6 {[%emt 0:00:01]} 25. Rxc6 {[%emt 0:00:02]} bxc6 {[%emt 0:00:00]} 26. Bd2 {[%emt 0:00:03]} Bf5 {[%emt 0:00:03]} 27. Ba5 {[%emt 0:00:05]} Kf7 {[%emt 0:00:06]} 28. Rb6 {[%emt 0:00:25]} Be4 {[%emt 0:00:01]} 29. Kf2 {[%emt 0:00:03]} h6 {[%emt 0:00:01]} 30. g3 {[%emt 0:00:03]} g5 {[%emt 0:00:00]} 31. Ke3 {[%emt 0:00:03]} Bg2 {[%emt 0:00:00]} 32. c4 {[%emt 0:00:02]} f5 {[%emt 0:00:00]} 33. Rb2 {[%emt 0:00:09]} Bh1 {[%emt 0:00:04]} 34. Bc7 {[%emt 0:00:02]} g4 {[%emt 0:00:01]} 35. Rb8 {[%emt 0:00:10]} Ra7 {[%emt 0:00:12]} 36. Bb6 {[%emt 0:00:05]} Rd7 {[%emt 0:00:01]} 37. Rd8 {[%emt 0:00:03]} Rxd8 {[%emt 0:00:00]} 1/2-1/2

[Event "IND-ch Senior Open 2019"]
[Site "Mazitar"]
[Date "2019.12.12"]
[Round "4.8"]
[White "Vishnu Prasanna. V"]
[Black "Girinath, P.D.S."]
[Result "0-1"]
[ECO "C07"]
[WhiteElo "2493"]
[BlackElo "2330"]
[Annotator "ChessBase"]
[PlyCount "82"]
[EventDate "2018.12.08"]
[EventType "swiss"]
[EventRounds "11"]
[EventCountry "IND"]
[SourceTitle "playchess.com"]
[Source "ChessBase"]
[SourceQuality "1"]
[TimeControl "40/5400+30:1800+30"]

1. e4 {[%emt 1:29:00]} e6 {[%emt 1:29:10]} 2. d4 {[%emt 0:01:59]} d5 {[%emt 0:01:24]} 3. Nd2 {[%emt 0:00:30]} c5 {[%emt 0:00:00]} 4. c3 {[%emt 0:00:20]} cxd4 {[%emt 0:00:00]} 5. cxd4 {[%emt 0:00:41]} Nc6 {[%emt 0:01:54]} 6. Ngf3 {[%emt 0:00:29]} dxe4 {[%emt 0:00:00]} 7. Nxe4 {[%emt 0:00:30]} Be7 {[%emt 0:00:00]} 8. Bd3 {[%emt 0:00:30]} Nf6 {[%emt 0:00:00]} 9. O-O {[%emt 0:00:30]} O-O {[%emt 0:00:00]} 10. a3 {[%emt 0:00:30]} Bd7 {[%emt 0:00:00]} 11. Qe2 {[%emt 0:00:00]} Qb6 {[%emt 0:00:00]} 12. Rd1 {[%emt 0:00:00]} Rfd8 {[%emt 0:00:00]} 13. Nxf6+ {[%emt 0:00:00]} Bxf6 {[%emt 0:02:14]} 14. Be3 {[%emt 0:02:00]} Ne7 {[%emt 0:00:00]} 15. Ne5 {[%emt 0:00:00]} Be8 {[%emt 0:00:00]} 16. d5 {[%emt 0:00:00]} Qc7 {[%emt 0:03:00]} 17. d6 {[%emt 0:01:31]} Rxd6 {[%emt 0:00:24]} 18. Ng4 {[%emt 0:00:29]} Rd5 {[%emt 0:00:00]} 19. Rac1 {[%emt 0:00:30]} Bc6 {[%emt 0:00:21]} 20. Nxf6+ {[%emt 0:00:00]} gxf6 {[%emt 0:01:33]} 21. Bb1 {[%emt 0:00:36]} Rxd1+ {[%emt 0:00:00]} 22. Qxd1 {[%emt 0:00:54]} Qe5 {[%emt 0:00:57]} 23. Rc4 {[%emt 0:00:00]} Ng6 {[%emt 0:00:31]} 24. Rd4 {[%emt 0:01:00]} Bd5 {[%emt 0:00:32]} 25. h4 {[%emt 0:00:30]} h5 {[%emt 0:00:00]} 26. Qc1 {[%emt 0:00:00]} f5 {[%emt 0:00:59]} 27. Rd1 {[%emt 0:01:00]} Qg7 {[%emt 0:00:00]} 28. Bh6 {[%emt 0:00:00]} Qe5 {[%emt 0:00:41]} 29. Qg5 {[%emt 0:00:00]} Qe2 {[%emt 0:00:00]} 30. Rxd5 {[%emt 0:01:01]} exd5 {[%emt 0:01:19]} 31. Bxf5 {[%emt 0:00:59]} Qe7 {[%emt 0:00:00]} 32. Qxe7 {[%emt 0:00:00]} Nxe7 {[%emt 0:01:00] -error} 33. Bd3 f6 34. Be3 Kg7 35. Be2 Kg6 36. Bd3+ Kf7 37. Be2 Kg6 38. Bd3+ Kg7 39. f3 Nc6 40. g4 Ne5 41. Be2 Nxg4 0-1

[Event "IND-ch Senior Open 2019"]
[Site "Mazitar"]
[Date "2019.12.12"]
[Round "4.9"]
[White "Sriram, Jha"]
[Black "Anurag, Mhamal"]
[Result "0-1"]
[ECO "A05"]
[WhiteElo "2384"]
[BlackElo "2490"]
[Annotator "ChessBase"]
[PlyCount "96"]
[EventDate "2018.12.08"]
[EventType "swiss"]
[EventRounds "11"]
[EventCountry "IND"]
[SourceTitle "playchess.com"]
[Source "ChessBase"]
[SourceQuality "1"]
[TimeControl "40/5400+30:1800+30"]

1. Nf3 {[%emt 0:48:59]} Nf6 {[%emt 1:30:28]} 2. g3 {[%emt 0:42:00]} c5 {[%emt 0:00:24]} 3. c4 {[%emt 0:00:30]} Nc6 {[%emt 0:00:35]} 4. Bg2 {[%emt 0:00:30]} e5 {[%emt 0:00:32]} 5. Nc3 {[%emt 0:00:25]} g6 {[%emt 0:00:30]} 6. O-O {[%emt 0:00:35]} Bg7 {[%emt 0:00:30]} 7. e3 {[%emt 0:00:30]} O-O {[%emt 0:00:00]} 8. d4 {[%emt 0:00:30]} d6 {[%emt 0:01:01]} 9. d5 Na5 {[%emt 0:00:00]} 10. Nd2 {[%emt 0:01:00]} Bg4 {[%emt 0:00:00]} 11. f3 {[%emt 0:00:31]} Bd7 {[%emt 0:01:29]} 12. a3 {[%emt 0:00:00]} Rc8 {[%emt 0:00:00]} 13. Qc2 {[%emt 0:00:59]} h5 {[%emt 0:00:00]} 14. Rb1 {[%emt 0:00:30]} Bh6 {[%emt 0:00:00]} 15. Qd3 {[%emt 0:00:30]} b5 {[%emt 0:00:00]} 16. b3 {[%emt 0:00:31]} a6 {[%emt 0:00:00]} 17. Bb2 {[%emt 0:00:29]} Bf5 {[%emt 0:00:00]} 18. e4 {[%emt 0:00:31]} Bd7 19. f4 {[%emt 0:00:29]} h4 {[%emt 0:00:00]} 20. Nd1 {[%emt 0:00:30]} hxg3 {[%emt 0:04:31]} 21. hxg3 {[%emt 0:00:31]} Nh5 {[%emt 0:00:00]} 22. fxe5 {[%emt 0:00:30]} Qg5 {[%emt 0:00:59]} 23. Bc3 {[%emt 0:00:30]} Nb7 {[%emt 0:00:00]} 24. exd6 {[%emt 0:00:30]} Nxd6 25. Kh2 {[%emt 0:00:29]} Rb8 {[%emt 0:00:00]} 26. Rf2 {[%emt 0:00:30]} bxc4 {[%emt 0:02:00]} 27. bxc4 Rxb1 28. Nxb1 {[%emt 0:00:59]} f5 {[%emt 0:01:00]} 29. Nd2 {[%emt 0:00:31]} f4 30. gxf4 {[%emt 0:00:27]} Qh4+ {[%emt 0:01:01]} 31. Kg1 {[%emt 0:00:34]} Nxf4 {[%emt 0:00:29]} 32. Qf1 {[%emt 0:00:29]} Bh3 {[%emt 0:00:30]} 33. Nf3 {[%emt 0:00:28]} Qg3 {[%emt 0:00:31]} 34. Be5 {[%emt 0:00:32]} Nxe4 {[%emt 0:00:22]} 35. Rb2 {[%emt 0:00:26]} Bxg2 {[%emt 0:00:37]} 36. Rxg2 {[%emt 0:00:33]} Nh3+ {[%emt 0:00:30]} 37. Kh1 {[%emt 0:00:31]} Rxf3 {[%emt 0:00:30]} 38. Qe2 {[%emt 0:00:31]} Nef2+ {[%emt 0:00:30]} 39. Nxf2 {[%emt 0:00:30]} Nxf2+ {[%emt 0:00:31]} 40. Kg1 {[%emt 0:00:30]} Nh3+ {[%emt 0:00:30]} 41. Kh1 {[%emt 0:30:30]} Qh4 {[%emt 0:00:00]} 42. Bh2 {[%emt 0:00:29]} Re3 {[%emt 0:31:00]} 43. Rxg6+ {[%emt 0:00:30]} Kf7 {[%emt 0:00:30]} 44. Qc2 {[%emt 0:00:30]} Nf2+ {[%emt 0:00:26]} 45. Kg1 {[%emt 0:00:31]} Re1+ 46. Kg2 {[%emt 0:00:30]} Qh3+ {[%emt 0:01:04]} 47. Kxf2 {[%emt 0:00:30]} Rf1+ 48. Ke2 {[%emt 0:00:30]} Qf3# 0-1